fUSD/lending_fUSD_20260519
["ID","MTS","AMOUNT","RATE_DAILY","PERIOD"]
[422583706,1779125439000,-500.0,0.00013698,2]
[422583672,1779125439000,-886.6,0.00013698,2]
[422583691,1779125439000,-500.0,0.00013698,2]
[422583669,1779125439000,-886.6,0.00013698,2]
[422583667,1779125439000,-886.6,0.00013698,2]
[422583668,1779125439000,-886.6,0.00013698,2]
[422583670,1779125439000,-886.6,0.00013698,2]
[422583671,1779125439000,-886.6,0.00013698,2]
[422583721,1779125439000,-166.66,0.00013699,2]
[422583682,1779125439000,-500.0,0.00013698,2]
[422583675,1779125439000,-500.0,0.00013698,2]
[422583676,1779125439000,-500.0,0.00013698,2]
[422583677,1779125439000,-500.0,0.00013698,2]
[422583674,1779125439000,-500.0,0.00013698,2]
[422583673,1779125439000,-529.46048419,0.00013698,2]
[422583679,1779125439000,-500.0,0.00013698,2]
[422583680,1779125439000,-500.0,0.00013698,2]
[422583678,1779125439000,-500.0,0.00013698,2]
[422583681,1779125439000,-500.0,0.00013698,2]
[422583694,1779125439000,-500.0,0.00013698,2]
[422583684,1779125439000,-500.0,0.00013698,2]
[422583683,1779125439000,-500.0,0.00013698,2]
[422583685,1779125439000,-500.0,0.00013698,2]
[422583686,1779125439000,-500.0,0.00013698,2]
[422583688,1779125439000,-500.0,0.00013698,2]
[422583687,1779125439000,-500.0,0.00013698,2]
[422583689,1779125439000,-500.0,0.00013698,2]
[422583692,1779125439000,-500.0,0.00013698,2]
[422583693,1779125439000,-500.0,0.00013698,2]
[422583690,1779125439000,-500.0,0.00013698,2]
[422583696,1779125439000,-500.0,0.00013698,2]
[422583733,1779125439000,-150.0,0.00013777,2]
[422583725,1779125439000,-150.0,0.00013702,2]
[422583724,1779125439000,-201.9544886,0.000137,2]
[422583759,1779125439000,-150.0,0.00013882,2]
[422583762,1779125439000,-150.0,0.00013928,2]
[422583770,1779125439000,-166.66,0.00013973,2]
[422583761,1779125439000,-150.0,0.00013916,2]
[422583760,1779125439000,-150.0,0.00013908,2]
[422583763,1779125439000,-150.0,0.00013928,2]
[422583764,1779125439000,-150.0,0.00013935,2]
[422583768,1779125439000,-150.0,0.00013961,2]
[422583771,1779125439000,-150.0,0.00013987,2]
[422583769,1779125439000,-167.05,0.00013962,2]
[422583766,1779125439000,-716.53,0.00013955,2]
[422583767,1779125439000,-150.0,0.00013956,2]
[422583765,1779125439000,-150.0,0.00013937,2]
[422583779,1779125439000,-150.0,0.00014014,2]
[422583774,1779125439000,-150.0,0.00013987,2]
[422583780,1779125439000,-150.0,0.00014017,2]
[422583772,1779125439000,-150.0,0.00013987,2]
[422583781,1779125439000,-150.0,0.00014017,2]
[422583782,1779125439000,-150.0,0.00014023,2]
[422583778,1779125439000,-250.0,0.00014,2]
[422583775,1779125439000,-500.0,0.00013989,2]
[422583776,1779125439000,-28605.64549199,0.0001399,2]
[422583777,1779125439000,-154.14514099,0.00013999,2]
[422583783,1779125439000,-150.0,0.0001404,2]
[422583723,1779125439000,-546.02,0.00013699,2]
[422583784,1779125439000,-150.0,0.0001405,2]
[422583786,1779125439000,-9390.83081619,0.00014076,2]
[422583751,1779125439000,-976.64272298,0.0001384,2]
[422583754,1779125439000,-150.0,0.0001384,2]
[422583785,1779125439000,-150.0,0.00014066,2]
[422583750,1779125439000,-166.66,0.00013836,2]
[422583752,1779125439000,-421.86465391,0.0001384,2]
[422583729,1779125439000,-150.0,0.00013751,2]
[422583726,1779125439000,-150.0,0.00013724,2]
[422583728,1779125439000,-187.8,0.00013744,2]
[422583727,1779125439000,-150.0,0.00013737,2]
[422583730,1779125439000,-150.0,0.00013752,2]
[422583735,1779125439000,-150.0,0.00013787,2]
[422583734,1779125439000,-150.0,0.00013787,2]
[422583745,1779125439000,-514.8980104,0.0001382,2]
[422583738,1779125439000,-150.0,0.00013803,2]
[422583741,1779125439000,-500.0,0.0001382,2]
[422583736,1779125439000,-9390.83081619,0.00013801,2]
[422583743,1779125439000,-623.07,0.0001382,2]
[422583731,1779125439000,-150.0,0.00013752,2]
[422583740,1779125439000,-500.0,0.0001382,2]
[422583744,1779125439000,-886.6,0.0001382,2]
[422583746,1779125439000,-500.0,0.0001382,2]
[422583758,1779125439000,-150.0,0.00013862,2]
[422583748,1779125439000,-500.0,0.0001382,2]
[422583756,1779125439000,-150.0,0.00013856,2]
[422583753,1779125439000,-150.0,0.0001384,2]
[422583757,1779125439000,-150.0,0.00013862,2]
[422583739,1779125439000,-150.0,0.00013809,2]
[422583755,1779125439000,-2000.0,0.00013856,2]
[422583749,1779125439000,-150.0,0.00013829,2]
[422583742,1779125439000,-761.19,0.0001382,2]
[422583747,1779125439000,-500.0,0.0001382,2]
[422583737,1779125439000,-39995.10780914,0.00013801,2]
[422583815,1779125440000,-150.0,0.00014237,2]
[422583825,1779125440000,-154.14514099,0.00014299,2]
[422583817,1779125440000,-166.66,0.00014247,2]
[422583822,1779125440000,-150.0,0.00014276,2]
[422583818,1779125440000,-150.50660597,0.00014247,21]
[422583838,1779125440000,-166.66,0.00014384,2]
[422583823,1779125440000,-150.0,0.00014281,2]
[422583820,1779125440000,-150.00000001,0.00014247,21]
[422583821,1779125440000,-150.0,0.0001425,2]
[422583827,1779125440000,-150.0,0.00014329,2]
[422583816,1779125440000,-150.0,0.00014237,2]
[422583832,1779125440000,-150.0,0.00014355,2]
[422583829,1779125440000,-150.0,0.00014344,2]
[422583828,1779125440000,-150.0,0.00014331,2]
[422583833,1779125440000,-157.11,0.00014357,2]
[422583834,1779125440000,-150.0,0.00014362,2]
[422583830,1779125440000,-9390.83081619,0.0001435,2]
[422583831,1779125440000,-39995.10780914,0.0001435,2]
[422583835,1779125440000,-150.0,0.00014369,2]
[422583836,1779125440000,-150.0,0.00014369,2]
[422583837,1779125440000,-150.0,0.00014382,2]
[422583839,1779125440000,-150.0,0.00014387,2]
[422583824,1779125440000,-150.0,0.00014281,2]
[422583826,1779125440000,-150.0,0.00014303,2]
[422583814,1779125440000,-150.0,0.00014237,2]
[422583799,1779125440000,-500.0,0.00014141,2]
[422583807,1779125440000,-150.0,0.00014193,2]
[422583790,1779125440000,-150.0,0.00014092,2]
[422583792,1779125440000,-150.0,0.00014105,2]
[422583791,1779125440000,-150.0,0.00014105,2]
[422583788,1779125440000,-150.0,0.00014087,2]
[422583789,1779125440000,-150.0,0.00014087,2]
[422583787,1779125440000,-39995.10780914,0.00014076,2]
[422583794,1779125440000,-150.0,0.00014112,2]
[422583795,1779125440000,-150.0,0.00014119,2]
[422583793,1779125440000,-166.66,0.0001411,2]
[422583796,1779125440000,-150.0,0.0001413,2]
[422583800,1779125440000,-500.0,0.00014141,2]
[422583812,1779125440000,-150.0,0.00014224,2]
[422583798,1779125440000,-500.0,0.00014141,2]
[422583802,1779125440000,-150.0,0.00014143,2]
[422583801,1779125440000,-1797.08,0.00014141,2]
[422583806,1779125440000,-150.0,0.00014193,2]
[422583808,1779125440000,-976.64272298,0.00014193,2]
[422583804,1779125440000,-552.53031504,0.0001416,2]
[422583803,1779125440000,-150.0,0.00014145,2]
[422583813,1779125440000,-150.0,0.00014237,2]
[422583805,1779125440000,-150.0,0.00014171,2]
[422583810,1779125440000,-150.0,0.00014198,2]
[422583811,1779125440000,-2310.59015461,0.0001421,7]
[422583809,1779125440000,-421.86465391,0.00014193,2]
[422583797,1779125440000,-541.66,0.00014141,2]
[422583843,1779125440000,-150.0,0.00014434,2]
[422583819,1779125440000,-152.31832915,0.00014247,21]
[422583844,1779125440000,-150.0,0.00014451,2]
[422583874,1779125440000,-150.0,0.00014558,2]
[422583871,1779125440000,-150.0,0.00014546,2]
[422583875,1779125440000,-150.0,0.00014566,2]
[422583872,1779125440000,-976.64272298,0.00014547,2]
[422583877,1779125440000,-154.14514099,0.000146,2]
[422583878,1779125440000,-2600.0,0.000146,5]
[422583876,1779125440000,-150.0,0.00014592,2]
[422583873,1779125440000,-421.86465391,0.00014547,2]
[422583882,1779125440000,-150.0,0.00014612,2]
[422583880,1779125440000,-7100.0,0.000146,5]
[422583883,1779125440000,-150.0,0.00014612,2]
[422583870,1779125440000,-150.0,0.00014546,2]
[422583884,1779125440000,-159.0,0.00014614,2]
[422583886,1779125440000,-150.0,0.00014618,2]
[422583888,1779125440000,-39995.10780914,0.00014625,2]
[422583887,1779125440000,-9390.83081619,0.00014625,2]
[422583889,1779125440000,-150.0,0.00014634,2]
[422583881,1779125440000,-250.0,0.00014604,2]
[422583890,1779125440000,-150.0,0.00014634,2]
[422583892,1779125440000,-150.0,0.00014665,2]
[422583891,1779125440000,-150.0,0.00014645,2]
[422583893,1779125440000,-150.0,0.00014671,2]
[422583895,1779125440000,-150.0,0.00014687,2]
[422583840,1779125440000,-150.0,0.00014387,2]
[422583885,1779125440000,-736.0,0.00014614,2]
[422583868,1779125440000,-150.0,0.00014537,2]
[422583894,1779125440000,-150.0,0.00014687,2]
[422583869,1779125440000,-150.0,0.00014539,2]
[422583842,1779125440000,-150.0,0.00014424,2]
[422583841,1779125440000,-150.0,0.00014408,2]
[422583846,1779125440000,-150.0,0.00014457,2]
[422583847,1779125440000,-150.0,0.0001446,2]
[422583856,1779125440000,-29999.99,0.00014504,2]
[422583845,1779125440000,-150.0,0.00014457,2]
[422583848,1779125440000,-150.0,0.00014487,2]
[422583879,1779125440000,-1500.0,0.000146,5]
[422583853,1779125440000,-5700.0,0.000145,5]
[422583849,1779125440000,-150.0,0.00014487,2]
[422583850,1779125440000,-150.0,0.00014487,2]
[422583855,1779125440000,-29999.99,0.00014504,2]
[422583854,1779125440000,-2633.7,0.00014504,2]
[422583852,1779125440000,-1200.0,0.000145,5]
[422583867,1779125440000,-150.0,0.00014518,2]
[422583851,1779125440000,-2100.0,0.000145,5]
[422583861,1779125440000,-623.07,0.00014513,2]
[422583866,1779125440000,-150.0,0.00014513,2]
[422583860,1779125440000,-761.19,0.00014513,2]
[422583865,1779125440000,-500.0,0.00014513,2]
[422583862,1779125440000,-886.6,0.00014513,2]
[422583863,1779125440000,-500.0,0.00014513,2]
[422583857,1779125440000,-336.42,0.00014508,2]
[422583859,1779125440000,-500.0,0.00014513,2]
[422583858,1779125440000,-500.0,0.00014513,2]
[422583864,1779125440000,-500.0,0.00014513,2]
[422583934,1779125441000,-25000.0,0.000149,3]
[422583931,1779125441000,-39995.10780914,0.000149,2]
[422583927,1779125441000,-150.0,0.00014898,2]
[422583933,1779125441000,-976.64272298,0.000149,2]
[422583919,1779125441000,-150.0,0.00014836,2]
[422583932,1779125441000,-500.0,0.000149,5]
[422583925,1779125441000,-150.0,0.00014893,2]
[422583926,1779125441000,-150.0,0.00014898,2]
[422583922,1779125441000,-10000.0,0.00014862,2]
[422583928,1779125441000,-154.14514099,0.000149,2]
[422583930,1779125441000,-9390.83081619,0.000149,2]
[422583944,1779125441000,-150.0,0.00014934,2]
[422583935,1779125441000,-1066.1783394,0.000149,2]
[422583938,1779125441000,-300.0,0.000149,5]
[422583937,1779125441000,-421.86465391,0.000149,2]
[422583939,1779125441000,-8084.84378184,0.000149,2]
[422583941,1779125441000,-1400.0,0.000149,5]
[422583943,1779125441000,-290.88615179,0.00014908,2]
[422583942,1779125441000,-150.0,0.00014907,2]
[422583936,1779125441000,-1194.70420687,0.000149,2]
[422583945,1779125441000,-541.66,0.00014943,2]
[422583940,1779125441000,-172.9083057,0.000149,2]
[422583921,1779125441000,-150.0,0.00014861,2]
[422583929,1779125441000,-552.53031504,0.000149,2]
[422583924,1779125441000,-150.0,0.00014881,2]
[422583905,1779125441000,-150.0,0.0001475,2]
[422583920,1779125441000,-150.0,0.00014855,2]
[422583947,1779125441000,-500.0,0.00014943,2]
[422583901,1779125441000,-150.0,0.00014722,2]
[422583902,1779125441000,-150.0,0.00014722,2]
[422583898,1779125441000,-300.0,0.000147,5]
[422583897,1779125441000,-500.0,0.000147,5]
[422583896,1779125441000,-150.0,0.00014697,2]
[422583899,1779125441000,-1400.0,0.000147,5]
[422583900,1779125441000,-150.0,0.00014705,2]
[422583904,1779125441000,-150.0,0.00014737,2]
[422583903,1779125441000,-150.0,0.00014723,2]
[422583912,1779125441000,-1400.0,0.000148,5]
[422583913,1779125441000,-150.0,0.00014802,2]
[422583911,1779125441000,-300.0,0.000148,5]
[422583906,1779125441000,-150.0,0.00014772,2]
[422583907,1779125441000,-150.0,0.00014776,2]
[422583909,1779125441000,-3292.0,0.00014799,2]
[422583908,1779125441000,-150.0,0.00014799,2]
[422583910,1779125441000,-500.0,0.000148,5]
[422583914,1779125441000,-823.0,0.00014808,2]
[422583918,1779125441000,-246.88445587,0.00014832,2]
[422583916,1779125441000,-150.0,0.0001481,2]
[422583915,1779125441000,-150.0,0.0001481,2]
[422583917,1779125441000,-150.0,0.00014829,2]
[422583923,1779125441000,-150.0,0.00014879,2]
[422583948,1779125441000,-1797.08,0.00014943,2]
[422583952,1779125441000,-278.83771141,0.00014986,2]
[422583946,1779125441000,-500.0,0.00014943,2]
[422583979,1779125441000,-500.0,0.00014999,2]
[422583980,1779125441000,-500.0,0.00014999,2]
[422583978,1779125441000,-541.82,0.00014999,2]
[422583981,1779125441000,-500.0,0.00014999,2]
[422583986,1779125441000,-502.07620855,0.00014999,2]
[422583984,1779125441000,-500.0,0.00014999,2]
[422583982,1779125441000,-500.0,0.00014999,2]
[422583983,1779125441000,-500.0,0.00014999,2]
[422583985,1779125441000,-534.8114487,0.00014999,2]
[422583987,1779125441000,-761.19,0.00014999,2]
[422583989,1779125441000,-761.19,0.00014999,2]
[422583977,1779125441000,-541.66,0.00014999,2]
[422583994,1779125441000,-761.19,0.00014999,2]
[422583990,1779125441000,-761.19,0.00014999,2]
[422583991,1779125441000,-761.19,0.00014999,2]
[422583993,1779125441000,-761.19,0.00014999,2]
[422583992,1779125441000,-761.19,0.00014999,2]
[422583995,1779125441000,-761.19,0.00014999,2]
[422583997,1779125441000,-761.19,0.00014999,2]
[422583949,1779125441000,-150.0,0.0001496,2]
[422583999,1779125441000,-761.19,0.00014999,2]
[422583998,1779125441000,-761.19,0.00014999,2]
[422584000,1779125441000,-761.19,0.00014999,2]
[422584001,1779125441000,-761.19,0.00014999,2]
[422583988,1779125441000,-761.19,0.00014999,2]
[422583971,1779125441000,-541.66,0.00014999,2]
[422583996,1779125441000,-761.19,0.00014999,2]
[422583974,1779125441000,-541.66,0.00014999,2]
[422583972,1779125441000,-541.66,0.00014999,2]
[422583951,1779125441000,-150.0,0.00014985,2]
[422583950,1779125441000,-604.94776535,0.00014983,2]
[422583954,1779125441000,-164.93102534,0.00014986,2]
[422583953,1779125441000,-250.88125163,0.00014986,2]
[422583957,1779125441000,-151.33807361,0.00014986,2]
[422583956,1779125441000,-150.0,0.00014986,2]
[422583958,1779125441000,-150.0,0.00014986,2]
[422583959,1779125441000,-151.05845012,0.00014986,2]
[422583962,1779125441000,-594.85323188,0.0001499,2]
[422583963,1779125441000,-541.66,0.00014999,2]
[422583955,1779125441000,-153.19086251,0.00014986,2]
[422583965,1779125441000,-541.66,0.00014999,2]
[422583964,1779125441000,-541.66,0.00014999,2]
[422583976,1779125441000,-541.66,0.00014999,2]
[422583975,1779125441000,-541.66,0.00014999,2]
[422583970,1779125441000,-541.66,0.00014999,2]
[422583966,1779125441000,-541.66,0.00014999,2]
[422583973,1779125441000,-541.66,0.00014999,2]
[422583968,1779125441000,-541.66,0.00014999,2]
[422583967,1779125441000,-541.66,0.00014999,2]
[422583960,1779125441000,-150.00000003,0.00014986,2]
[422583961,1779125441000,-594.85323188,0.0001499,2]
[422583969,1779125441000,-541.66,0.00014999,2]
[422584022,1779125442000,-886.6,0.00014999,2]
[422584033,1779125442000,-886.6,0.00014999,2]
[422584027,1779125442000,-886.6,0.00014999,2]
[422584030,1779125442000,-886.6,0.00014999,2]
[422584029,1779125442000,-886.6,0.00014999,2]
[422584034,1779125442000,-886.6,0.00014999,2]
[422584031,1779125442000,-886.6,0.00014999,2]
[422584028,1779125442000,-886.6,0.00014999,2]
[422584039,1779125442000,-500.0,0.00014999,2]
[422584035,1779125442000,-886.6,0.00014999,2]
[422584037,1779125442000,-886.65162455,0.00014999,2]
[422584036,1779125442000,-886.6,0.00014999,2]
[422584041,1779125442000,-500.0,0.00014999,2]
[422584042,1779125442000,-500.0,0.00014999,2]
[422584040,1779125442000,-500.0,0.00014999,2]
[422584038,1779125442000,-500.0,0.00014999,2]
[422584024,1779125442000,-886.6,0.00014999,2]
[422584043,1779125442000,-500.0,0.00014999,2]
[422584032,1779125442000,-886.6,0.00014999,2]
[422584023,1779125442000,-886.6,0.00014999,2]
[422584010,1779125442000,-623.07,0.00014999,2]
[422584020,1779125442000,-500.0,0.00014999,2]
[422584045,1779125442000,-500.0,0.00014999,2]
[422584002,1779125442000,-761.34810702,0.00014999,2]
[422584003,1779125442000,-623.07,0.00014999,2]
[422584005,1779125442000,-623.07,0.00014999,2]
[422584007,1779125442000,-623.07,0.00014999,2]
[422584008,1779125442000,-623.07,0.00014999,2]
[422584004,1779125442000,-623.07,0.00014999,2]
[422584006,1779125442000,-623.07,0.00014999,2]
[422584009,1779125442000,-623.07,0.00014999,2]
[422584021,1779125442000,-573.64825692,0.00014999,2]
[422584011,1779125442000,-623.07,0.00014999,2]
[422584018,1779125442000,-623.23899683,0.00014999,2]
[422584012,1779125442000,-623.07,0.00014999,2]
[422584016,1779125442000,-623.07,0.00014999,2]
[422584017,1779125442000,-623.07,0.00014999,2]
[422584014,1779125442000,-623.07,0.00014999,2]
[422584015,1779125442000,-623.07,0.00014999,2]
[422584019,1779125442000,-500.0,0.00014999,2]
[422584026,1779125442000,-886.6,0.00014999,2]
[422584025,1779125442000,-886.6,0.00014999,2]
[422584013,1779125442000,-623.07,0.00014999,2]
[422584050,1779125442000,-500.0,0.00014999,2]
[422584053,1779125442000,-500.0,0.00014999,2]
[422584048,1779125442000,-609.17,0.00014999,2]
[422584071,1779125442000,-500.0,0.00014999,2]
[422584076,1779125442000,-500.0,0.00014999,2]
[422584079,1779125442000,-500.0,0.00014999,2]
[422584075,1779125442000,-500.0,0.00014999,2]
[422584078,1779125442000,-500.0,0.00014999,2]
[422584077,1779125442000,-500.0,0.00014999,2]
[422584080,1779125442000,-500.0,0.00014999,2]
[422584081,1779125442000,-315.6405027,0.00014999,2]
[422584082,1779125442000,-1797.08,0.00014999,2]
[422584088,1779125442000,-1797.08,0.00014999,2]
[422584089,1779125442000,-1797.08,0.00014999,2]
[422584085,1779125442000,-1797.08,0.00014999,2]
[422584084,1779125442000,-1797.08,0.00014999,2]
[422584087,1779125442000,-1797.08,0.00014999,2]
[422584086,1779125442000,-1797.08,0.00014999,2]
[422584091,1779125442000,-1797.08,0.00014999,2]
[422584090,1779125442000,-1797.08,0.00014999,2]
[422584092,1779125442000,-1797.08,0.00014999,2]
[422584044,1779125442000,-500.0,0.00014999,2]
[422584073,1779125442000,-200.16128818,0.00014999,2]
[422584074,1779125442000,-500.0,0.00014999,2]
[422584083,1779125442000,-1797.08,0.00014999,2]
[422584069,1779125442000,-500.0,0.00014999,2]
[422584072,1779125442000,-500.0,0.00014999,2]
[422584051,1779125442000,-500.0,0.00014999,2]
[422584049,1779125442000,-500.0,0.00014999,2]
[422584046,1779125442000,-500.0,0.00014999,2]
[422584052,1779125442000,-553.1,0.00014999,2]
[422584055,1779125442000,-500.0,0.00014999,2]
[422584056,1779125442000,-500.0,0.00014999,2]
[422584059,1779125442000,-500.0,0.00014999,2]
[422584057,1779125442000,-500.0,0.00014999,2]
[422584054,1779125442000,-500.0,0.00014999,2]
[422584047,1779125442000,-577.13283333,0.00014999,2]
[422584064,1779125442000,-500.0,0.00014999,2]
[422584060,1779125442000,-500.0,0.00014999,2]
[422584062,1779125442000,-500.0,0.00014999,2]
[422584070,1779125442000,-500.0,0.00014999,2]
[422584068,1779125442000,-500.0,0.00014999,2]
[422584063,1779125442000,-500.0,0.00014999,2]
[422584067,1779125442000,-500.0,0.00014999,2]
[422584061,1779125442000,-500.0,0.00014999,2]
[422584058,1779125442000,-500.0,0.00014999,2]
[422584125,1779125443000,-1196.09,0.0001531,2]
[422584124,1779125443000,-7645.37,0.0001531,2]
[422584121,1779125443000,-1578.74,0.0001531,2]
[422584117,1779125443000,-520.48,0.0001531,2]
[422584118,1779125443000,-4999.99,0.0001531,2]
[422584116,1779125443000,-190734.85,0.0001531,2]
[422584123,1779125443000,-9999.99,0.0001531,2]
[422584114,1779125443000,-9999.99,0.0001531,2]
[422584122,1779125443000,-1487.95,0.0001531,2]
[422584127,1779125443000,-150.99,0.0001531,2]
[422584132,1779125443000,-368662.04852346,0.0001585,2]
[422584128,1779125443000,-81138.56,0.0001531,2]
[422584129,1779125443000,-2000.0,0.00015395,2]
[422584130,1779125443000,-157.11,0.00015554,2]
[422584140,1779125443000,-4609.0,0.00016279,2]
[422584133,1779125443000,-336.42,0.00015959,2]
[422584131,1779125443000,-300.0,0.00015849,2]
[422584135,1779125443000,-300.0,0.00016,2]
[422584134,1779125443000,-1252.0,0.00015988,2]
[422584137,1779125443000,-150.0,0.00016146,2]
[422584126,1779125443000,-9999.99,0.0001531,2]
[422584120,1779125443000,-24999.99,0.0001531,2]
[422584094,1779125443000,-1797.08,0.00014999,2]
[422584115,1779125443000,-9999.99,0.0001531,2]
[422584100,1779125443000,-15013745.191306,0.00015,2]
[422584093,1779125443000,-1797.08,0.00014999,2]
[422584139,1779125443000,-1152.0,0.00016269,2]
[422584096,1779125443000,-1797.08,0.00014999,2]
[422584095,1779125443000,-1797.08,0.00014999,2]
[422584098,1779125443000,-300.0,0.00014999,2]
[422584097,1779125443000,-1797.28759521,0.00014999,2]
[422584099,1779125443000,-666.0,0.00014999,2]
[422584102,1779125443000,-151.0,0.00015068,2]
[422584103,1779125443000,-151.0,0.00015068,2]
[422584101,1779125443000,-810.11,0.00015,2]
[422584105,1779125443000,-9999.99,0.0001531,2]
[422584104,1779125443000,-300.0,0.00015309,2]
[422584107,1779125443000,-433.66,0.0001531,2]
[422584108,1779125443000,-2201.76,0.0001531,2]
[422584109,1779125443000,-34895.25,0.0001531,2]
[422584106,1779125443000,-1370.74,0.0001531,2]
[422584111,1779125443000,-299.99,0.0001531,2]
[422584110,1779125443000,-851.11,0.0001531,2]
[422584112,1779125443000,-3222.11,0.0001531,2]
[422584113,1779125443000,-999.99,0.0001531,2]
[422584119,1779125443000,-1628.27,0.0001531,2]
[422584136,1779125443000,-300.0,0.00016115,2]
[422584138,1779125443000,-3925.28,0.00016185,2]
[422584142,1779125443000,-448.92,0.00016438,2]
[422584170,1779125443000,-500.0,0.00017808,2]
[422584168,1779125443000,-500.0,0.00017808,2]
[422584171,1779125443000,-500.0,0.00017808,2]
[422584175,1779125443000,-6453.0,0.00017907,2]
[422584173,1779125443000,-538.29242494,0.00017808,2]
[422584176,1779125443000,-157.11,0.00017947,2]
[422584174,1779125443000,-685.0,0.00017875,2]
[422584177,1779125443000,-350.0,0.00018,2]
[422584172,1779125443000,-500.0,0.00017808,2]
[422584179,1779125443000,-500.0,0.00018101,2]
[422584183,1779125443000,-151.0,0.00018101,2]
[422584182,1779125443000,-151.0,0.00018101,2]
[422584180,1779125443000,-500.0,0.00018101,2]
[422584181,1779125443000,-459.05527314,0.00018101,2]
[422584184,1779125443000,-151.0,0.00018101,2]
[422584185,1779125443000,-151.0,0.00018101,2]
[422584186,1779125443000,-151.0,0.00018101,2]
[422584187,1779125443000,-151.0,0.00018101,2]
[422584188,1779125443000,-151.0,0.00018101,2]
[422584189,1779125443000,-151.0,0.00018101,2]
[422584141,1779125443000,-392.9,0.00016438,2]
[422584169,1779125443000,-500.0,0.00017808,2]
[422584166,1779125443000,-500.0,0.00017808,2]
[422584178,1779125443000,-500.0,0.00018101,2]
[422584165,1779125443000,-500.0,0.00017808,2]
[422584143,1779125443000,-299.28,0.00016438,2]
[422584162,1779125443000,-500.0,0.00017808,2]
[422584146,1779125443000,-157.11,0.0001675,2]
[422584150,1779125443000,-810.11,0.000169,2]
[422584151,1779125443000,-2000.0,0.00016935,2]
[422584148,1779125443000,-285.45,0.00016767,2]
[422584145,1779125443000,-156.85,0.00016712,2]
[422584149,1779125443000,-150.0,0.00016806,2]
[422584144,1779125443000,-150.0,0.00016627,2]
[422584153,1779125443000,-174.16,0.00017205,2]
[422584152,1779125443000,-164.57963726,0.00016951,7]
[422584147,1779125443000,-150.0,0.00016764,2]
[422584161,1779125443000,-500.0,0.00017808,2]
[422584154,1779125443000,-481.0,0.00017383,2]
[422584156,1779125443000,-278.0,0.00017445,2]
[422584157,1779125443000,-2129.0,0.00017495,2]
[422584159,1779125443000,-300.0,0.00017807,2]
[422584158,1779125443000,-556.0,0.00017568,2]
[422584160,1779125443000,-500.0,0.00017808,2]
[422584163,1779125443000,-500.0,0.00017808,2]
[422584164,1779125443000,-500.0,0.00017808,2]
[422584155,1779125443000,-336.42,0.0001741,2]
[422584167,1779125443000,-500.0,0.00017808,2]
[422584223,1779125444000,-274.0,0.00019136,2]
[422584225,1779125444000,-1270.0,0.00019404,2]
[422584222,1779125444000,-46947.10731997,0.00019,2]
[422584221,1779125444000,-278.0,0.00018815,2]
[422584217,1779125444000,-330.0,0.0001846,2]
[422584220,1779125444000,-810.11,0.000188,2]